lending/lending_fUSD_20240504
["ID","MTS","AMOUNT","RATE_DAILY","PERIOD"]
[325386208,1714804286216,-500.0,0.00041095,30]
[325386209,1714804286226,-1085.1,0.00041095,30]
[325386210,1714804286235,-500.0,0.00041095,30]
[325386211,1714804286246,-500.0,0.00041095,30]
[325386212,1714804286256,-506.37202735,0.00041095,30]
[325386213,1714804286266,-500.0,0.00041095,30]
[325386214,1714804286276,-500.0,0.00041095,30]
[325386215,1714804286286,-500.0,0.00041095,30]
[325386216,1714804286296,-500.0,0.00041095,30]
[325386217,1714804286305,-500.0,0.00041095,30]
[325386218,1714804286315,-500.0,0.00041095,30]
[325386219,1714804286326,-507.08,0.00041095,30]
[325386220,1714804286336,-733.56,0.00041095,30]
[325386221,1714804286346,-500.0,0.00041095,30]
[325386222,1714804286359,-500.0,0.00041095,30]
[325386223,1714804286369,-512.0,0.00041095,30]
[325386224,1714804286379,-1180.7,0.00041095,30]
[325386225,1714804286391,-510.8992171,0.00041095,30]
[325386226,1714804286401,-728.21,0.00041095,30]
[325386227,1714804286410,-1873.89,0.00041095,30]
[325386228,1714804286420,-500.0,0.00041095,30]
[325386229,1714804286431,-500.0,0.00041095,30]
[325386230,1714804286441,-504.09033127,0.00041095,30]
[325386231,1714804286451,-494.48217696,0.00041095,30]
[325386232,1714804286462,-2851.66,0.00041095,30]
[325386233,1714804286471,-1461.9,0.00041095,30]
[325386234,1714804286481,-1491.41,0.00041095,30]
[325386235,1714804286491,-573.609053,0.00041095,14]
[325386236,1714804286502,-573.609053,0.00041095,14]
[325386237,1714804286512,-1352.23,0.00041095,30]
[325386238,1714804286522,-573.609053,0.00041095,14]
[325386239,1714804286532,-500.0,0.00041095,30]
[325386240,1714804286542,-711.02,0.00041095,30]
[325386241,1714804286552,-500.0,0.00041095,30]
[325386242,1714804286562,-573.609053,0.00041095,14]
[325386243,1714804286572,-500.0,0.00041095,30]
[325386244,1714804286582,-500.0,0.00041095,30]
[325386245,1714804286594,-500.0,0.00041095,30]
[325386246,1714804286606,-573.609053,0.00041095,14]
[325386247,1714804286616,-573.609058,0.00041095,14]
[325386248,1714804286626,-737.59,0.00041095,30]
[325386249,1714804286636,-1148.29,0.00041095,30]
[325386250,1714804286647,-1752.48,0.00041095,30]
[325386251,1714804286657,-500.0,0.00041095,30]
[325386252,1714804286667,-908.48,0.00041095,30]
[325386253,1714804286680,-856.8,0.00041095,30]
[325386254,1714804286690,-757.0,0.00041095,30]
[325386255,1714804286701,-500.0,0.00041095,30]
[325386256,1714804286711,-500.0,0.00041095,30]
[325386257,1714804286721,-500.0,0.00041095,30]
[325386258,1714804286731,-500.0,0.00041095,30]
[325386259,1714804286741,-500.0,0.00041095,30]
[325386260,1714804286752,-1864.51,0.00041095,30]
[325386261,1714804286762,-848.5,0.00041095,30]
[325386262,1714804286772,-504.70511003,0.00041095,30]
[325386263,1714804286782,-1576.82,0.00041095,30]
[325386264,1714804286791,-500.0,0.00041095,30]
[325386265,1714804286802,-500.0,0.00041095,30]
[325386266,1714804286812,-500.0,0.00041095,30]
[325386267,1714804286822,-501.2303344,0.00041095,30]
[325386268,1714804286833,-1751.32,0.00041095,30]
[325386269,1714804286843,-3012.84,0.00041095,30]
[325386270,1714804286853,-500.0,0.00041095,30]
[325386271,1714804286863,-1398.32,0.00041095,30]
[325386272,1714804286873,-915.07,0.00041095,30]
[325386273,1714804286882,-500.0,0.00041095,30]
[325386274,1714804286892,-501.69673177,0.00041095,30]
[325386275,1714804286903,-641.77,0.00041095,30]
[325386276,1714804286912,-1076.11,0.00041095,30]
[325386277,1714804286923,-500.0,0.00041095,30]
[325386278,1714804286933,-726.55,0.00041095,30]
[325386279,1714804286943,-500.0,0.00041095,30]
[325386280,1714804286952,-4897.49,0.00041095,30]
[325386281,1714804286963,-500.0,0.00041095,30]
[325386282,1714804286974,-500.0,0.00041095,30]
[325386283,1714804286983,-1673.82,0.00041095,30]
[325386284,1714804286994,-673.17,0.00041095,30]
[325386285,1714804287003,-500.0,0.00041095,30]
[325386286,1714804287013,-500.0,0.00041095,30]
[325386287,1714804287024,-503.13822382,0.00041095,30]
[325386288,1714804287035,-500.0,0.00041095,30]
[325386289,1714804287045,-506.71043156,0.00041095,30]
[325386290,1714804287055,-748.969284,0.00041095,14]
[325386291,1714804287065,-718.05,0.00041095,30]
[325386292,1714804287075,-500.0,0.00041095,30]
[325386293,1714804287087,-1432.47,0.00041095,30]
[325386294,1714804287097,-547.59,0.00041095,30]
[325386295,1714804287107,-748.969284,0.00041095,14]
[325386296,1714804287117,-4397.99,0.00041095,30]
[325386297,1714804287126,-748.969284,0.00041095,14]
[325386298,1714804287136,-538.9,0.00041095,30]
[325386299,1714804287146,-500.0,0.00041095,30]
[325386300,1714804287155,-500.0,0.00041095,30]
[325386301,1714804287164,-500.0,0.00041095,30]
[325386302,1714804287174,-500.0,0.00041095,30]
[325386303,1714804287184,-748.969284,0.00041095,14]
[325386304,1714804287194,-270.525452,0.00041095,14]
[325386305,1714804287204,-270.525452,0.00041095,14]
[325386306,1714804287214,-270.525452,0.00041095,14]
[325386307,1714804287224,-500.0,0.00041095,30]
[325386308,1714804287234,-2962.97,0.00041095,30]
[325386309,1714804287244,-500.0,0.00041095,30]
[325386310,1714804287254,-500.0,0.00041095,30]
[325386311,1714804287264,-270.525452,0.00041095,14]
[325386312,1714804287274,-270.525452,0.00041095,14]
[325386313,1714804287283,-500.0,0.00041095,30]
[325386314,1714804287293,-500.0,0.00041095,30]
[325386315,1714804287304,-1632.52,0.00041095,30]
[325386316,1714804287314,-7464.42,0.00041095,30]
[325386317,1714804287324,-270.52546,0.00041095,14]
[325386318,1714804287334,-980.48,0.00041095,30]
[325386319,1714804287344,-500.0,0.00041095,30]
[325386320,1714804287354,-500.0,0.00041095,30]
[325386321,1714804287364,-505.29818131,0.00041095,30]
[325386322,1714804287375,-503.68724877,0.00041095,30]
[325386323,1714804287385,-748.969284,0.00041095,14]
[325386324,1714804287395,-748.969274,0.00041095,14]
[325386325,1714804287405,-500.0,0.00041095,30]
[325386326,1714804287415,-500.0,0.00041095,30]
[325386327,1714804287425,-505.99361754,0.00041095,30]
[325386328,1714804287436,-540.317802,0.00041095,14]
[325386329,1714804287445,-540.317802,0.00041095,14]
[325386330,1714804287456,-540.317802,0.00041095,14]
[325386331,1714804287466,-1213.78,0.00041095,30]
[325386332,1714804287476,-500.0,0.00041095,30]
[325386333,1714804287486,-1926.18,0.00041095,30]
[325386334,1714804287496,-11210.16,0.00041095,30]
[325386335,1714804287507,-501.49415691,0.00041095,30]
[325386336,1714804287517,-500.0,0.00041095,30]
[325386337,1714804287527,-469.75473981,0.00041095,30]
[325386338,1714804287538,-628.085847,0.00041095,14]
[325386339,1714804287548,-628.085847,0.00041095,14]
[325386340,1714804287559,-674.71,0.00041095,30]
[325386341,1714804287800,-628.085847,0.00041095,14]
[325386342,1714804287826,-540.317802,0.00041095,14]
[325386343,1714804287836,-540.317802,0.00041095,14]
[325386344,1714804287847,-540.317792,0.00041095,14]
[325386345,1714804287857,-590.34,0.00041095,30]
[325386346,1714804287867,-657.05,0.00041095,30]
[325386347,1714804287877,-628.085847,0.00041095,14]
[325386348,1714804287888,-628.085847,0.00041095,14]
[325386349,1714804287897,-628.085849,0.00041095,14]
[325386350,1714804287907,-500.0,0.00041095,30]
[325386351,1714804287917,-500.0,0.00041095,30]
[325386352,1714804287926,-878.3,0.00041095,30]
[325386353,1714804287936,-500.0,0.00041095,30]
[325386354,1714804287945,-151.0,0.00041095,14]
[325386355,1714804287957,-1254.01,0.00041095,30]
[325386356,1714804287967,-2156.01,0.00041095,30]
[325386357,1714804287976,-283.861427,0.00041095,14]
[325386358,1714804287987,-646.9,0.00041095,30]
[325386359,1714804287996,-1097.34,0.00041095,30]
[325386360,1714804288006,-151.0,0.00041095,14]
[325386361,1714804288015,-151.0,0.00041095,14]
[325386362,1714804288026,-646.79,0.00041095,30]
[325386363,1714804288036,-500.0,0.00041095,30]
[325386364,1714804288046,-151.0,0.00041095,14]
[325386365,1714804288055,-767.55,0.00041095,30]
[325386366,1714804288065,-1570.08,0.00041095,30]
[325386367,1714804288076,-500.0,0.00041095,30]
[325386368,1714804288086,-806.18,0.00041095,30]
[325386369,1714804288095,-503.57892592,0.00041095,30]
[325386370,1714804288105,-500.0,0.00041095,30]
[325386371,1714804288114,-169.473582,0.00041095,14]
[325386372,1714804288124,-500.0,0.00041095,30]
[325386373,1714804288134,-520.0772768,0.00041095,30]
[325386374,1714804288143,-500.0,0.00041095,30]
[325386375,1714804288153,-1396.2,0.00041095,30]
[325386376,1714804288162,-1591.11,0.00041095,30]
[325386377,1714804288173,-5286.71,0.00041095,30]
[325386378,1714804288182,-718.51,0.00041095,30]
[325386379,1714804288192,-508.04770589,0.00041095,30]
[325386380,1714804288202,-2954.78,0.00041095,30]
[325386381,1714804288211,-500.0,0.00041095,30]
[325386382,1714804288222,-1454.85,0.00041095,30]
[325386383,1714804288231,-697.39,0.00041095,30]
[325386384,1714804288242,-414.48549226,0.00041095,30]
[325386385,1714804288251,-500.0,0.00041095,30]
[325386386,1714804288262,-500.0,0.00041095,30]
[325386387,1714804288271,-500.0,0.00041095,30]
[325386388,1714804288281,-868.23,0.00041095,30]
[325386389,1714804288291,-509.36428607,0.00041095,30]
[325386390,1714804288302,-2201.185585,0.00041095,14]
[325386391,1714804288311,-2201.185585,0.00041095,14]
[325386392,1714804288321,-500.0,0.00041095,30]
[325386393,1714804288332,-500.0,0.00041095,30]
[325386394,1714804288342,-151.0,0.00041095,14]
[325386395,1714804288352,-249.816609,0.00041095,14]
[325386396,1714804288361,-500.0,0.00041095,30]
[325386397,1714804288370,-2201.185585,0.00041095,14]
[325386398,1714804288380,-2201.18559,0.00041095,14]
[325386399,1714804288390,-1298.32,0.00041095,30]
[325386400,1714804288400,-1642.02,0.00041095,30]
[325386401,1714804288409,-500.0,0.00041095,30]
[325386402,1714804288419,-1389.08,0.00041095,30]
[325386403,1714804288429,-830.49,0.00041095,30]
[325386404,1714804288438,-500.0,0.00041095,30]
[325386405,1714804288448,-630.63,0.00041095,30]
[325386406,1714804288458,-3246.61,0.00041095,30]
[325386407,1714804288468,-500.0,0.00041095,30]
[325386408,1714804288478,-917.44,0.00041095,30]
[325386409,1714804288487,-500.0,0.00041095,30]
[325386410,1714804288498,-357.704333,0.00041095,14]
[325386411,1714804288508,-357.704333,0.00041095,14]
[325386412,1714804288518,-606.66,0.00041095,30]
[325386413,1714804288528,-554.09,0.00041095,30]
[325386414,1714804288538,-803.21,0.00041095,30]
[325386415,1714804288548,-500.0,0.00041095,30]
[325386416,1714804288557,-500.0,0.00041095,30]
[325386417,1714804288567,-357.704333,0.00041095,14]
[325386418,1714804288577,-503.12205996,0.00041095,30]
[325386419,1714804288588,-878.48,0.00041095,30]
[325386420,1714804288603,-357.704333,0.00041095,14]
[325386421,1714804288613,-500.0,0.00041095,30]
[325386422,1714804288623,-500.0,0.00041095,30]
[325386423,1714804288632,-247.395308,0.00041095,14]
[325386424,1714804288643,-247.395308,0.00041095,14]
[325386425,1714804288653,-1151.65,0.00041095,30]
[325386426,1714804288663,-545.4219915,0.00041095,30]
[325386427,1714804288672,-500.0,0.00041095,30]
[325386428,1714804288683,-536.21,0.00041095,30]
[325386429,1714804288694,-500.0,0.00041095,30]
[325386430,1714804288703,-736.838102,0.00041095,14]
[325386431,1714804288714,-523.57645686,0.00041095,30]
[325386432,1714804288724,-247.395308,0.00041095,14]
[325386433,1714804288734,-736.838102,0.00041095,14]
[325386434,1714804288744,-247.395299,0.00041095,14]
[325386435,1714804288753,-500.0,0.00041095,30]
[325386436,1714804288763,-291.887504,0.00041095,14]
[325386437,1714804288773,-500.0,0.00041095,30]
[325386438,1714804288783,-291.887504,0.00041095,14]
[325386439,1714804288793,-151.0,0.00041095,14]
[325386440,1714804288802,-38908.11,0.00041095,30]
[325386441,1714804288812,-151.0,0.00041095,14]
[325386442,1714804288822,-503.09860383,0.00041095,30]
[325386443,1714804288831,-500.0,0.00041095,30]
[325386444,1714804288841,-502.5029687,0.00041095,30]
[325386445,1714804288850,-736.838102,0.00041095,14]
[325386446,1714804288860,-736.838104,0.00041095,14]
[325386447,1714804288870,-1441.4,0.00041095,30]
[325386448,1714804288879,-500.0,0.00041095,30]
[325386449,1714804288889,-291.887504,0.00041095,14]
[325386450,1714804288899,-500.0,0.00041095,30]
[325386451,1714804288908,-500.0,0.00041095,30]
[325386452,1714804288918,-1246.13,0.00041095,30]
[325386453,1714804288928,-291.887502,0.00041095,14]
[325386454,1714804288937,-1049.3,0.00041095,30]
[325386455,1714804288947,-198.05845226,0.00041095,30]
[325386456,1714804288959,-971.99,0.00041095,30]
[325386457,1714804288969,-607.55125586,0.00041095,30]
[325386458,1714804288979,-1237.57,0.00041095,30]
[325386459,1714804288989,-930.99,0.00041095,30]
[325386460,1714804289000,-500.0,0.00041095,30]
[325386461,1714804289010,-500.0,0.00041095,30]
[325386462,1714804289019,-291.089466,0.00041095,14]
[325386463,1714804289031,-291.089466,0.00041095,14]
[325386464,1714804289041,-1282.5,0.00041095,30]
[325386465,1714804289051,-500.0,0.00041095,30]
[325386466,1714804289061,-2129.99,0.00041095,30]
[325386467,1714804289070,-440.55570586,0.00041095,30]
[325386468,1714804289080,-1241.15,0.00041095,30]
[325386469,1714804289090,-291.089466,0.00041095,14]
[325386470,1714804289100,-291.089463,0.00041095,14]
[325386471,1714804289110,-1194.08,0.00041095,30]
[325386472,1714804289120,-500.0,0.00041095,30]
[325386473,1714804289130,-500.0,0.00041095,30]
[325386474,1714804289139,-748.99,0.00041095,30]
[325386475,1714804289149,-500.0,0.00041095,30]
[325386476,1714804289159,-2843.95,0.00041095,30]
[325386477,1714804289168,-500.0,0.00041095,30]
[325386478,1714804289178,-151.0,0.00041095,14]
[325386479,1714804289187,-151.0,0.00041095,14]
[325386480,1714804289197,-500.0,0.00041095,30]
[325386481,1714804289207,-3926.6,0.00041095,30]
[325386482,1714804289217,-500.0,0.00041095,30]
[325386483,1714804289226,-502.79271319,0.00041095,30]
[325386484,1714804289236,-500.0,0.00041095,30]
[325386485,1714804289246,-4556.7,0.00041095,30]
[325386486,1714804289256,-1663.57,0.00041095,30]
[325386487,1714804289266,-659.16,0.00041095,30]
[325386488,1714804289275,-502.99173656,0.00041095,30]
[325386489,1714804289286,-464.18576821,0.00041095,30]
[325386490,1714804289296,-1358.71,0.00041095,30]
[325386491,1714804289306,-7353.81,0.00041095,30]
[325386492,1714804289316,-500.0,0.00041095,30]
[325386493,1714804289327,-540.0264978,0.00041095,30]
[325386494,1714804289337,-1294.7,0.00041095,30]
[325386495,1714804289347,-1619.87,0.00041095,30]
[325386496,1714804289357,-500.0,0.00041095,30]
[325386497,1714804289366,-739.44,0.00041095,30]
[325386498,1714804289376,-504.74299731,0.00041095,30]
[325386499,1714804289386,-1382.87,0.00041095,30]
[325386500,1714804289396,-500.0,0.00041095,30]
[325386501,1714804289406,-985.65007,0.00041095,14]
[325386502,1714804289416,-500.0,0.00041095,30]
[325386503,1714804289426,-985.65007,0.00041095,14]
[325386504,1714804289436,-2847.84,0.00041095,30]
[325386505,1714804289446,-500.0,0.00041095,30]
[325386506,1714804289456,-312.45669114,0.00041095,30]
[325386507,1714804289467,-10499.11,0.00041095,30]
[325386508,1714804289477,-985.65007,0.00041095,14]
[325386509,1714804289487,-5055.53,0.00041095,30]
[325386510,1714804289497,-985.650064,0.00041095,14]
[325386511,1714804289508,-500.0,0.00041095,30]
[325386512,1714804289518,-502.43195047,0.00041095,30]
[325386513,1714804289527,-500.0,0.00041095,30]
[325386514,1714804289537,-1804.24,0.00041095,30]
[325386515,1714804289548,-572.4180673,0.00041095,30]
[325386516,1714804289557,-4334.23,0.00041095,30]
[325386517,1714804289567,-4140.56,0.00041095,30]
[325386518,1714804289576,-4140.66,0.00041095,30]
[325386519,1714804289586,-10000.0,0.00041095,14]
[325386520,1714804289603,-500.0,0.00041095,30]
[325386521,1714804289613,-895.13,0.00041095,30]
[325386522,1714804289623,-500.0,0.00041095,30]
[325386523,1714804289632,-452.00433328,0.00041095,30]
[325386524,1714804289643,-10000.0,0.00041095,14]
[325386525,1714804289653,-900.819523,0.00041095,14]
[325386526,1714804289662,-1128.62,0.00041095,30]
[325386527,1714804289672,-1013.43,0.00041095,30]
[325386528,1714804289682,-503.67172127,0.00041095,30]
[325386529,1714804289693,-503.91312592,0.00041095,30]
[325386530,1714804289703,-11955.39,0.00041095,30]
[325386531,1714804289713,-20134.07,0.00041095,30]
[325386532,1714804289723,-500.0,0.00041095,30]
[325386533,1714804289732,-5798.7,0.00041095,30]
[325386534,1714804289742,-2964.19,0.00041095,30]
[325386535,1714804289751,-1379.6,0.00041095,30]
[325386536,1714804289762,-500.0,0.00041095,30]
[325386537,1714804289772,-513.37875273,0.00041095,30]
[325386538,1714804289782,-1446.45,0.00041095,30]
[325386539,1714804289791,-900.819518,0.00041095,14]
[325386540,1714804289801,-2163.8,0.00041095,30]
[325386541,1714804289810,-1620.54,0.00041095,30]
[325386542,1714804289820,-500.0,0.00041095,30]
[325386543,1714804289830,-1297.42,0.00041095,30]
[325386544,1714804289839,-695.45,0.00041095,30]
[325386545,1714804289849,-500.0,0.00041095,30]
[325386546,1714804289859,-5796.1,0.00041095,30]
[325386547,1714804289868,-500.0,0.00041095,30]
[325386548,1714804289878,-500.0,0.00041095,30]
[325386549,1714804289887,-13511.87,0.00041095,30]
[325386550,1714804289897,-1593.66,0.00041095,30]
[325386551,1714804289906,-1166.37,0.00041095,30]
[325386552,1714804289916,-3098.77,0.00041095,30]
[325386553,1714804289925,-599.09461074,0.00041095,30]
[325386554,1714804289935,-614.06466477,0.00041095,30]
[325386555,1714804289945,-2614.65,0.00041095,30]
[325386556,1714804289954,-1287.3,0.00041095,30]
[325386557,1714804289965,-2898.88,0.00041095,30]
[325386558,1714804289975,-992.96,0.00041095,30]
[325386559,1714804289984,-902.08,0.00041095,30]
[325386560,1714804289993,-1474.6,0.00041095,30]
[325386561,1714804290002,-1308.60972,0.00041095,14]
[325386562,1714804290012,-507.52197276,0.00041095,30]
[325386563,1714804290021,-2941.88,0.00041095,30]
[325386564,1714804290032,-500.0,0.00041095,30]
[325386565,1714804290042,-9644.52,0.00041095,30]
[325386566,1714804290052,-632.35,0.00041095,30]
[325386567,1714804290061,-715.58,0.00041095,30]
[325386568,1714804290070,-1308.609729,0.00041095,14]
[325386569,1714804290080,-417.413404,0.00041095,14]
[325386570,1714804290090,-3971.88,0.00041095,30]
[325386571,1714804290100,-2000.0,0.00041095,120]
[325386572,1714804290110,-2936.13,0.00041095,30]
[325386573,1714804290121,-304.530927,0.00041095,14]
[325386574,1714804290131,-155.386923,0.00041095,14]
[325386575,1714804290142,-155.386923,0.00041095,14]
[325386576,1714804290151,-1154.63,0.00041095,30]
[325386577,1714804290247,-1251.73,0.00041095,30]
[325386578,1714804290257,-500.0,0.00041095,30]
[325386579,1714804290266,-613.16,0.00041095,30]
[325386580,1714804290276,-417.413402,0.00041095,14]
[325386581,1714804290285,-2645.03,0.00041095,30]
[325386582,1714804290295,-500.0,0.00041095,30]
[325386583,1714804290304,-304.530927,0.00041095,14]
[325386584,1714804290314,-729.26,0.00041095,30]
[325386585,1714804290324,-926.894193,0.00041095,14]
[325386586,1714804290333,-591.81,0.00041095,30]
[325386587,1714804290343,-503.00274684,0.00041095,30]
[325386588,1714804290354,-155.386923,0.00041095,14]
[325386589,1714804290363,-155.386917,0.00041095,14]
[325386590,1714804290373,-6387.28,0.00041095,30]
[325386591,1714804290383,-3596.7,0.00041095,30]
[325386592,1714804290392,-500.0,0.00041095,30]
[325386593,1714804290402,-926.894192,0.00041095,14]
[325386594,1714804290412,-503.32724509,0.00041095,30]
[325386595,1714804290421,-500.0,0.00041095,30]
[325386596,1714804290431,-1122.59,0.00041095,30]
[325386597,1714804290440,-500.0,0.00041095,30]
[325386598,1714804290450,-388.23145716,0.00041095,30]
[325386599,1714804290461,-3148.83,0.00041095,30]
[325386600,1714804290471,-1304.54,0.00041095,30]
[325386601,1714804290480,-502.48738074,0.00041095,30]
[325386602,1714804290489,-500.0,0.00041095,30]
[325386603,1714804290499,-7155.89,0.00041095,30]
[325386604,1714804290509,-2088.56,0.00041095,30]
[325386605,1714804290519,-1520.04,0.00041095,30]
[325386606,1714804290529,-2801.67,0.00041095,30]
[325386607,1714804290539,-6453.58,0.00041095,30]
[325386608,1714804290548,-502.23148514,0.00041095,30]
[325386609,1714804290558,-500.0,0.00041095,30]
[325386610,1714804290568,-2714.03,0.00041095,30]
[325386611,1714804290578,-55269.77,0.00041095,30]
[325386612,1714804290587,-842.07,0.00041095,30]
[325386613,1714804290597,-504.77756141,0.00041095,30]
[325386614,1714804290609,-503.55901936,0.00041095,30]
[325386615,1714804290619,-1344.51,0.00041095,30]
[325386616,1714804290628,-3337.98,0.00041095,30]
[325386617,1714804290637,-502.47554769,0.00041095,30]
[325386618,1714804290646,-2421.65,0.00041095,30]
[325386619,1714804290658,-969.9,0.00041095,30]
[325386620,1714804290667,-500.0,0.00041095,30]
[325386621,1714804290676,-249.98956,0.00041095,14]
[325386622,1714804290687,-503.24774915,0.00041095,30]
[325386623,1714804290696,-500.0,0.00041095,30]
[325386624,1714804290706,-500.0,0.00041095,30]
[325386625,1714804290716,-1297.46,0.00041095,30]
[325386626,1714804290726,-500.0,0.00041095,30]
[325386627,1714804290735,-500.0,0.00041095,30]
[325386628,1714804290745,-581.8,0.00041095,30]
[325386629,1714804290754,-249.989564,0.00041095,14]
[325386630,1714804290764,-500.0,0.00041095,30]
[325386631,1714804290774,-2605.66,0.00041095,30]
[325386632,1714804290783,-500.0,0.00041095,30]
[325386633,1714804290792,-1606.91,0.00041095,30]
[325386634,1714804290802,-500.0,0.00041095,30]
[325386635,1714804290811,-2660.28,0.00041095,30]
[325386636,1714804290820,-501.90640431,0.00041095,30]
[325386637,1714804290830,-501.94538295,0.00041095,30]
[325386638,1714804290839,-1460.69,0.00041095,30]
[325386639,1714804290848,-2793.1,0.00041095,30]
[325386640,1714804290857,-774.63,0.00041095,30]
[325386641,1714804290866,-500.0,0.00041095,30]
[325386642,1714804290875,-7153.39,0.00041095,30]
[325386643,1714804290884,-500.0,0.00041095,30]
[325386644,1714804290894,-4465.63,0.00041095,30]
[325386645,1714804290903,-575.23,0.00041095,30]
[325386646,1714804290912,-399.982056,0.00041095,14]
[325386647,1714804290921,-4839.68,0.00041095,30]
[325386648,1714804290931,-720.81,0.00041095,30]
[325386649,1714804290940,-500.0,0.00041095,30]
[325386650,1714804290949,-500.0,0.00041095,30]
[325386651,1714804290959,-500.0,0.00041095,30]
[325386652,1714804290968,-500.0,0.00041095,30]
[325386653,1714804290978,-13012.4,0.00041095,30]
[325386654,1714804290987,-399.982051,0.00041095,14]
[325386655,1714804290997,-502.77402387,0.00041095,30]
[325386656,1714804291006,-220.642998,0.00041095,14]
[325386657,1714804291017,-500.0,0.00041095,30]
[325386658,1714804291027,-500.0,0.00041095,30]
[325386659,1714804291037,-1308.11,0.00041095,30]
[325386660,1714804291047,-3053.86,0.00041095,30]
[325386661,1714804291056,-500.0,0.00041095,30]
[325386662,1714804291065,-2451.52,0.00041095,30]
[325386663,1714804291074,-500.0,0.00041095,30]
[325386664,1714804291084,-500.0,0.00041095,30]
[325386665,1714804291093,-920.93,0.00041095,30]
[325386666,1714804291102,-500.0,0.00041095,30]
[325386667,1714804291111,-220.64299,0.00041095,14]
[325386668,1714804291120,-956.41,0.00041095,30]
[325386669,1714804291129,-2297.03,0.00041095,30]
[325386670,1714804291139,-1281.02,0.00041095,30]
[325386671,1714804291148,-1822.35,0.00041095,30]
[325386672,1714804291157,-500.0,0.00041095,30]
[325386673,1714804291166,-500.0,0.00041095,30]
[325386674,1714804291175,-500.0,0.00041095,30]
[325386675,1714804291184,-5003.77,0.00041095,30]
[325386676,1714804291193,-7739.3,0.00041095,30]
[325386677,1714804291202,-19992.9,0.00041095,30]
[325386678,1714804291212,-569.58,0.00041095,30]
[325386679,1714804291221,-500.0,0.00041095,30]
[325386680,1714804291230,-500.0,0.00041095,30]
[325386681,1714804291239,-503.77194245,0.00041095,30]
[325386682,1714804291248,-10158.59,0.00041095,30]
[325386683,1714804291257,-285.4143851,0.00041095,30]
[325386684,1714804291266,-1474.32,0.00041095,30]
[325386685,1714804291275,-500.0,0.00041095,30]
[325386686,1714804291284,-503.47078094,0.00041095,30]
[325386687,1714804291293,-2516.84,0.00041095,30]
[325386688,1714804291303,-503.90753049,0.00041095,30]
[325386689,1714804291312,-500.0,0.00041095,30]
[325386690,1714804291321,-20837.33,0.00041095,30]
[325386691,1714804291331,-2315.67,0.00041095,30]
[325386692,1714804291340,-3168.12,0.00041095,30]
[325386693,1714804291349,-554.94,0.00041095,30]
[325386694,1714804291359,-500.0,0.00041095,30]
[325386695,1714804291368,-1691.35,0.00041095,30]
[325386696,1714804291377,-1934.65,0.00041095,30]
[325386697,1714804291387,-1664.39,0.00041095,30]
[325386698,1714804291396,-501.17877658,0.00041095,30]
[325386699,1714804291405,-161.481937,0.00041095,14]
[325386700,1714804291414,-48518.9,0.00041095,30]
[325386701,1714804291423,-381.094395,0.00041095,14]
[325386702,1714804291433,-504.08221179,0.00041095,30]
[325386703,1714804291442,-172.192935,0.00041095,14]
[325386704,1714804291451,-4519.3,0.00041095,30]
[325386705,1714804291461,-1772.68,0.00041095,30]
[325386706,1714804291470,-381.094396,0.00041095,14]
[325386707,1714804291481,-2372.3,0.00041095,30]